Cogmind - Beta 13 X2 @@@ ROGUE MODE // 2024.01.23 @ 02:20:52 Player: Decinym Result: Destroyed by M7-VSP(R) with Subdweller Machine Gun Performance ------------- Evolutions (0) 0 Regions Visited (3) 600 Robots Destroyed (35) 175 Value Destroyed (766) 766 Prototype IDs (1) 20 Alien Tech Used (0) 0 Bonus (-11) -11 TOTAL SCORE: 1550 Bonus ------- Follower Combat Kills 7 Friendly Fire -18 Cogmind --------- Core Integrity 0/250 Matter 235/300 Energy 100/100 System Corruption 1% Temperature Cool (0) Movement Treading (240) Ox1 Location -10/Subcaves Parts ------- > --- POWER (1) -------- (None) > --- PROPULSION (2) --- Light Treads Light Treads > --- UTILITY (2) ------ High-capacity Storage Unit Makeshift Light Armor Plating > --- WEAPON (2) ------- Barrage Gun Battle Cannon > --- INVENTORY (20) --- Spiked Treads Aluminum Leg Aluminum Leg Aluminum Leg Makeshift Leg Large Storage Unit Huge Storage Unit Structural Scanner Light Armor Plating Improved Medium Laser Shotgun Shotgun Subdweller Machine Gun Battle Cannon Rocket Launcher Rocket Launcher Rocket Launcher Multitool Multitool Ripper Peak State ------------ > --- POWER ------------ Ion Engine > --- PROPULSION ------- Light Treads Light Treads > --- UTILITY ---------- High-capacity Storage Unit Makeshift Light Armor Plating > --- WEAPON ----------- Barrage Gun Battle Cannon > --- INVENTORY -------- Spiked Treads Aluminum Leg Aluminum Leg Aluminum Leg Makeshift Leg Large Storage Unit Huge Storage Unit Structural Scanner Light Armor Plating Improved Medium Laser Shotgun Shotgun Subdweller Machine Gun Battle Cannon Rocket Launcher Rocket Launcher Rocket Launcher Multitool Multitool Ripper [Rating: 16] Favorites ----------- Power Ion Engine Engine Ion Engine Propulsion Aluminum Leg Treads Light Treads Leg Aluminum Leg Utility Targeting Computer Storage Large Storage Unit Processor Targeting Computer Protection Makeshift Light Armor Plating Weapon Improved Medium Laser Energy Gun Improved Medium Laser Ballistic Gun Battle Rifle Ballistic Cannon Battle Cannon Launcher Subdweller Shrapnel Launcher Build | -11 -10 -10 -10 ------- Run | Yrd Mat Min Sub Slots Evolved . | . . . . Power . | . . . . Propulsion . | . . . . Utility . | . . . . Weapon . | . . . . Parts Attached 28 | . 13 . 15 Power 3 | . 2 . 1 Engine 3 | . 2 . 1 Core . | . . . . Reactor . | . . . . Propulsion 8 | . 4 . 4 Treads 2 | . . . 2 Leg 6 | . 4 . 2 Wheel . | . . . . Hover . | . . . . Flight . | . . . . Utility 5 | . 3 . 2 Device . | . . . . Storage 2 | . 1 . 1 Processor 1 | . 1 . . Hackware . | . . . . Protection 2 | . 1 . 1 Artifact . | . . . . Weapon 12 | . 4 . 8 Energy Gun 6 | . 4 . 2 Energy Cannon . | . . . . Ballistic Gun 3 | . . . 3 Ballistic Cannon 2 | . . . 2 Launcher 1 | . . . 1 Special Weapon . | . . . . Impact Weapon . | . . . . Slashing Weapon . | . . . . Piercing Weapon . | . . . . Special Melee Weapon . | . . . . Unidentified Prototypes 1 | . 1 . . Parts Lost 1 | . . . 1 Power 1 | . . . 1 Propulsion . | . . . . Utility . | . . . . Weapon . | . . . . Highest Loss Streak 1 | . . . 1 To Critical Strikes . | . . . . Average Slot Usage (%) 98 | . 96 100 97 Engine 12 | . 14 14 11 Treads 10 | . . . 19 Leg 17 | . 28 28 8 Storage 14 | . 14 14 14 Processor 8 | . 3 14 8 Protection 4 | . 7 . 5 Energy Gun 17 | . 27 28 8 Ballistic Gun 5 | . . . 9 Ballistic Cannon 5 | . . . 9 Naked Turns . | . . . . Heaviest Build 60 | 13 32 31 60 Greatest Support 40 | 20 20 20 40 Greatest Overweight (x) 1 | . 1 1 1 Average Overweight (x) . | . . 1 1 Largest Inventory Capacity 20 | . 15 15 20 Average Capacity 16 | . 12 15 18 Most Carried 20 | . 15 15 20 Average Carried 15 | . 11 15 17 Final Capacity 20 | 8 15 15 20 Final Carried 20 | 6 15 15 20 Class Distribution -------------------- 79% | Mutant 19% | Derelict-Mutant Dominant Class ---------------- Mutant | -10/Materials Mutant | -10/Mines Mutant | -10/Subcaves Resources | -11 -10 -10 -10 ----------- Run | Yrd Mat Min Sub Matter Collected 814 | 200 143 22 449 Remotely . | . . . . Salvage Created 1070 | . 492 192 386 Parts 69 | . 21 15 33 Haulers Intercepted 2 | . 2 . . Recyclers Shooed . | . . . . Parts Field Recycled . | . . . . Retrieved Matter . | . . . . Parts Self-Destructed 12 | . . . 12 Prevented . | . . . . Kills | -11 -10 -10 -10 ------- Run | Yrd Mat Min Sub Combat Hostiles Destroyed 25 | . 8 3 14 Guns 17 | . 7 3 7 Cannons 3 | . . . 3 AOE 5 | . 1 . 4 Classes Destroyed 11 | . 5 3 3 Worker 1 | . . 1 . Builder 1 | . . 1 . Tunneler 1 | . . 1 . Hauler 2 | . 2 . . Recycler 2 | . 1 1 . Operator 1 | . 1 . . Turret 2 | . . . 2 Swarmer 12 | . 3 3 6 Grunt 5 | . 5 . . Sentry 1 | . . . 1 Subdweller 7 | . . . 7 Best Kill Streak 6 | . 3 3 6 Combat Bots Only 4 | . 3 3 4 Max Kills in Single Turn 4 | . 2 2 4 Gunslinging 1 | . 1 1 . Exploded 4 | . 1 . 4 Melee . | . . . . Uniques/NPCs Destroyed . | . . . . Combat | -11 -10 -10 -10 -------- Run | Yrd Mat Min Sub Hostile Shots Fired 113 | . 38 7 68 Missed 38 | . 12 3 23 Damage Taken 1173 | . 317 31 825 Core 253 | . 35 . 218 Absorbed by Shields . | . . . . Redirected to Shielding 5 | . 5 . . Core Remaining (%) 100 | 100 . . . Volleys Fired 99 | . 32 9 58 Largest 2 | . 2 2 2 Hottest 116 | . 112 112 116 Shots Fired 186 | . 61 18 107 Gun 150 | . 61 18 71 Cannon 32 | . . . 32 Launcher 4 | . . . 4 Special . | . . . . Kinetic 67 | . . . 67 Thermal 95 | . 37 18 40 Explosive . | . . . . Electromagnetic 24 | . 24 . . Robot Hit Streak 15 | . 8 5 15 Robot Miss Streak 5 | . 5 1 2 Penetration Max . | . . . . Secondary Targets 4 | . 2 2 . Max Gunslinging Chain 1 | . 1 1 . Shots Hit Robots 108 | . 35 12 61 Core Hits 48 | . 17 7 24 Critical Kills . | . . . . Critical Parts Destroyed . | . . . . Critical Strikes 7 | . 2 1 4 Burn 7 | . 2 1 4 Melee Attacks . | . . . . Impact . | . . . . Slashing . | . . . . Piercing . | . . . . Sneak Attacks . | . . . . Combat Hostiles . | . . . . Follow-up Attacks . | . . . . Damage Inflicted 2045 | . 532 200 1313 Guns 1192 | . 500 200 492 Cannons 354 | . . . 354 Explosions 490 | . 32 . 458 Melee . | . . . . Ramming 9 | . . . 9 Kinetic 1101 | . . . 1101 Thermal 765 | . 362 200 203 Explosive . | . . . . Electromagnetic 170 | . 170 . . Impact . | . . . . Slashing . | . . . . Piercing . | . . . . Highest Corruption 1 | . 1 1 1 Average Corruption 1 | . 1 1 1 Corruption Purged . | . . . . Corruption Blocked . | . . . . Effects 27 | . 4 10 13 Message Errors 7 | . . 4 3 Matter Fused 9 | . 2 3 4 Heat Flow Errors 3 | . 1 1 1 Energy Discharges 2 | . . 1 1 Parts Rejected 1 | . . . 1 Data Loss (minor) 2 | . . . 2 Data Loss (major) 1 | . . 1 . Misfires 2 | . 1 . 1 Overload Shots . | . . . . Overflow Damage 8 | . . . 8 Projectiles . | . . . . Explosions 8 | . . . 8 Melee . | . . . . Knockbacks 7 | . . . 7 Impact . | . . . . Kinetic 7 | . . . 7 Secondary . | . . . . Self-Inflicted Damage 80 | . 33 . 47 Shots 2 | . 1 . 1 Rammed . | . . . . Targets Rammed 1 | . . . 1 Kicked 1 | . . . 1 Crushed . | . . . . Highest Temperature 272 | . 162 272 216 Average Temperature 60 | . 56 72 48 Received Heat Transfer 273 | . 111 . 162 Siege Activations . | . . . . Robots Corrupted . | . . . . Combat Hostiles . | . . . . Parts Fried 2 | . 2 . . Impact Corruptions . | . . . . Robots Melted . | . . . . Combat Hostiles . | . . . . Parts Melted 7 | . 2 1 4 Heat Transferred 2176 | . 918 518 740 Parts Sabotaged . | . . . . Parts Stolen . | . . . . Parts Stripped . | . . . . Power Chain Reactions 1 | . 1 . . Missiles Intercepted . | . . . . Alert | -11 -10 -10 -10 ------- Run | Yrd Mat Min Sub Peak Influence 188 | . 188 80 . Initial 11 | . . 11 . Average 47 | . 72 24 . Maximum Alert Level . | . . . . Low Security (%) 100 | . 100 100 . Level 1 . | . . . . Level 2 . | . . . . Level 3 . | . . . . Level 4 . | . . . . Level 5 . | . . . . High Security . | . . . . Max Security . | . . . . Squads Dispatched 2 | . 2 . . Investigation . | . . . . Extermination . | . . . . Reinforcement 2 | . 2 . . Assault . | . . . . Garrison . | . . . . Intercept . | . . . . Searches Triggered . | . . . . Construction Impeded . | . . . . Haulers Reinforced . | . . . . Active Scanning Responses . | . . . . Cargo Convoy Interrupts . | . . . . Stealth | -11 -10 -10 -10 --------- Run | Yrd Mat Min Sub Distress Signals 1 | . 1 . . Communications Jammed . | . . . . Distress Signals . | . . . . Times Spotted 48 | . 17 3 28 Peak Tracking Total 6 | . 3 3 6 Tactical Retreats 1 | . . . 1 Traps | -11 -10 -10 -10 ------- Run | Yrd Mat Min Sub Traps Triggered 1 | . 1 . . Indirectly . | . . . . Trap Hack Attempts . | . . . . Triggered . | . . . . Disarmed . | . . . . Reprogrammed . | . . . . Reused . | . . . . Traps Extracted . | . . . . Installed . | . . . . Triggered . | . . . . Machines | -11 -10 -10 -10 ---------- Run | Yrd Mat Min Sub Machines Disabled 6 | . 2 . 4 Max in Single Turn 3 | . 1 . 3 Machines Repaired . | . . . . Machines Dismantled . | . . . . Machines Sabotaged . | . . . . Overloaded Fab Kills . | . . . . Hacking | -11 -10 -10 -10 --------- Run | Yrd Mat Min Sub Machines Accessed 4 | . 4 . . Terminals 4 | . 4 . . Fabricators . | . . . . Repair Stations . | . . . . Recycling Units . | . . . . Scanalyzers . | . . . . Garrison Access . | . . . . Total Hacks 12 | . 12 . . Successful 2 | . 2 . . Failed 10 | . 10 . . Catastrophic 3 | . 3 . . Database Lockouts . | . . . . Manual 11 | . 11 . . Terminals 12 | . 12 . . Fabricators . | . . . . Repair Stations . | . . . . Recycling Units . | . . . . Scanalyzers . | . . . . Garrison Access . | . . . . Terminal Hacks 1 | . 1 . . Zone Layout 1 | . 1 . . Fabricator Hacks . | . . . . Repair Station Hacks . | . . . . Recycling Unit Hacks . | . . . . Scanalyzer . | . . . . Garrison Access Hacks . | . . . . Unauthorized Hacks 1 | . 1 . . Terminals 1 | . 1 . . Botnet 1 | . 1 . . Fabricators . | . . . . Repair Stations . | . . . . Recycling Units . | . . . . Scanalyzers . | . . . . Garrison Access . | . . . . Data Cores Recovered . | . . . . Used . | . . . . Hacking Detections 3 | . 3 . . Full Trace Events . | . . . . Feedback Events . | . . . . Feedback Blocked . | . . . . Robot Schematics Acquired . | . . . . Robots Built . | . . . . Authchips . | . . . . Time . | . . . . Total Robot Build Rating . | . . . . Part Schematics Acquired . | . . . . Parts Built . | . . . . Authchips . | . . . . Time . | . . . . Total Part Build Rating . | . . . . Parts Repaired . | . . . . Time . | . . . . Parts Recycled . | . . . . Recycled Matter . | . . . . Retrieved Matter . | . . . . Retrieved Components . | . . . . Parts Scanalyzed . | . . . . Part Schematics Acquired . | . . . . Parts Damaged . | . . . . Bothacking | -11 -10 -10 -10 ------------ Run | Yrd Mat Min Sub Used RIF Installer . | . . . . Robots Hacked . | . . . . Non-combat . | . . . . Combat . | . . . . Robot Hacks Applied . | . . . . Relay Couplers Released . | . . . . Fabnet Peak Effective % . | . . . . Robots Rewired . | . . . . Allies Hacked . | . . . . Hacks Repelled . | . . . . Allies | -11 -10 -10 -10 -------- Run | Yrd Mat Min Sub Total Allies 3 | . . 3 . Largest Group 3 | . . 3 3 Highest-Rated Group 40 | . . 40 40 Highest-Rated Ally 16 | . . 16 16 Total Orders . | . . . . Ally Attacks 45 | . . . 45 Total Damage 109 | . . . 109 Kills 1 | . . . 1 Allies Corrupted . | . . . . Allies Melted . | . . . . Intel | -11 -10 -10 -10 ------- Run | Yrd Mat Min Sub Robot Analysis Total . | . . . . Derelict Logs Recovered 4 | . . 2 2 Drone Launches . | . . . . Drone Recoveries . | . . . . Exploration | -11 -10 -10 -10 ------------- Run | Yrd Mat Min Sub Turns Passed 4407 | . 997 1119 2291 Spaces Moved 2031 | 1 524 575 931 Core . | . . . . Treads 617 | . . . 617 Legs 1414 | 1 524 575 314 Wheels . | . . . . Hover . | . . . . Flight . | . . . . Fastest Speed 120 | 120 120 190 190 Average Speed 198 | 120 162 190 223 Slowest Speed 240 | 120 190 190 240 Overloaded Moves . | . . . . Propulsion Burnouts . | . . . . Robots Hopped . | . . . . Cave-ins Triggered . | . . . . Exploration Rate (%) 55 | 2 75 98 47 Regions Visited 3 Branch Regions 2 Pre-discovered Areas . | . . . . Known Exits Taken . | . . . . Unknown Exits Taken 3 | 1 1 1 . Scrap Searched 18 | . . 1 17 Spaces Dug . | . . . . Terrain Destroyed 50 | . 3 . 47 Melee . | . . . . Projectile 1 | . . . 1 AOE 49 | . 3 . 46 Terrain Rammed . | . . . . Walls Destroyed . | . . . . Machines Disabled . | . . . . Actions | -11 -10 -10 -10 --------- Run | Yrd Mat Min Sub Total 2237 | . 614 585 1038 Wait 30 | . 14 . 16 Move 2028 | . 523 574 931 Hop . | . . . . Pick Up 24 | . 16 1 7 Fast Attach 9 | . 4 . 5 Attach 3 | . 2 . 1 Detach 1 | . . . 1 Swap 16 | . 7 . 9 Drop 26 | . 16 1 9 Fire 99 | . 32 9 58 Melee . | . . . . Ram . | . . . . Kick 1 | . . . 1 Crush . | . . . . Escape Stasis . | . . . . Rewire . | . . . . Trap . | . . . . Miscellaneous . | . . . . Route ------- -11/Scrapyard -10/Materials (discovered 3 exits: [*Mat x2] / [*Min]) -10/Mines (discovered 3 exits: [*Mat x2] / [*Sub]) -10/Subcaves (discovered 2 exits: [*Mat] / [*Rec]) History --------- Turn | Location | Event 1 | -11/Scrapyard | Discovered new exit (range 0) 1 | -11/Scrapyard | Entered Materials 324 | -10/Materials | Build established: Mutant 466 | -10/Materials | Discovered new exit (range 13) 466 | -10/Materials | Discovered new exit (range 16) 814 | -10/Materials | Discovered new exit (range 11) 998 | -10/Materials | Entered Mines 1005 | -10/Mines | Received a Rocket Launcher from a helpful Derelict 1112 | -10/Mines | Learned Materials security intel 1431 | -10/Mines | Discovered new exit (range 7) 1458 | -10/Mines | Learned Materials security intel 1481 | -10/Mines | Discovered new exit (range 6) 1937 | -10/Mines | Discovered new exit (range 10) 2043 | -10/Mines | Assisted by bots powering up and referring to "LRC-V3" 2117 | -10/Mines | Entered Subcaves 2117 | -10/Subcaves | Accompanied by 3 allies 2246 | -10/Subcaves | Ambushed by angry Subdweller bent on revenge 2291 | -10/Subcaves | Ambushed by angry Subdweller bent on revenge 2863 | -10/Subcaves | Core integrity fell below 50% 2964 | -10/Subcaves | Core integrity fell below 20% 3029 | -10/Subcaves | A swath of the cavern ceiling suddenly collapsed 3136 | -10/Subcaves | Discovered new exit (range 13) 3855 | -10/Subcaves | Build established: Derelict-Mutant 4121 | -10/Subcaves | Discovered new exit (range 12) 4408 | -10/Subcaves | Destroyed by M7-VSP(R) with Subdweller Machine Gun Last Messages --------------- 04125_ Autobeam Turret destroyed. 04130_ Flight Unit fries itself beyond repair. 04131_ Lgt. Assault Rifle fries itself beyond repair. 04139_ Searching scrap... 04139_ Found Shrapnel Trap. 04139_ Found Barrage Gun. 04139_ Found 30 Matter. 04140_ Acquired 30 matter. 04141_ Dropped Sub. Shrapnel Launcher. 04144_ Acquired Barrage Gun. 04152_ System corrupted: Heat flow error (+251). 04217_ Y-45 Defender destroyed. 04221_ Hvy. Assault Rifle fries itself beyond repair. 04229_ Imp. Ion Engine fries itself beyond repair. 04231_ Lgt. Treads fries itself beyond repair. 04244_ Acquired 51 matter. 04378_ PA5NCCOJ5FURN8&GCU